Cogmind - Beta 15 @@@ ROGUE MODE // 2025.07.30 @ 11:45:12 Player: satan5 Result: Destroyed by CQ-R61(R) with Subdweller Machine Gun Performance ------------- Evolutions (0) 0 Regions Visited (3) 600 Robots Destroyed (38) 190 Value Destroyed (585) 585 Prototype IDs (13) 260 Alien Tech Used (0) 0 Bonus (0) 0 TOTAL SCORE: 1635 Bonus ------- None Cogmind --------- Core Integrity 0/250 Matter 270/300 Energy 210/250 System Corruption 0% Temperature Cool (15) Movement Walking (190) Ox1 Location -10/Subcaves Parts ------- > --- POWER (1) -------- Ion Engine > --- PROPULSION (2) --- Aluminum Leg Aluminum Leg > --- UTILITY (2) ------ Large Storage Unit > --- WEAPON (2) ------- Particle Cannon Particle Cannon > --- INVENTORY (15) --- Light Ion Engine Light Nuclear Core Aluminum Leg Aluminum Leg Aluminum Leg Aluminum Leg High-capacity Storage Unit Heavy EM Pulse Gun Heavy EM Pulse Gun Heavy EM Pulse Gun Particle Cannon Particle Cannon Light Assault Rifle Peak State ------------ > --- POWER ------------ Ion Engine > --- PROPULSION ------- Aluminum Leg Aluminum Leg > --- UTILITY ---------- Large Storage Unit Seismic Detector > --- WEAPON ----------- Particle Cannon Particle Cannon > --- INVENTORY -------- Light Ion Engine Light Nuclear Core Aluminum Leg Aluminum Leg Aluminum Leg Aluminum Leg High-capacity Storage Unit Structural Scanner Heavy EM Pulse Gun Heavy EM Pulse Gun Particle Cannon Particle Cannon Light Assault Rifle Grenade Launcher [Rating: 11] Favorites ----------- Power Ion Engine Engine Ion Engine Propulsion Aluminum Leg Leg Aluminum Leg Utility Seismic Detector Device Seismic Detector Storage Large Storage Unit Weapon Particle Cannon Energy Gun Medium Laser Energy Cannon Particle Cannon Ballistic Gun Assault Rifle Launcher Grenade Launcher Build | -11 -10 -10 -10 ------- Run | Yrd Mat Min Sub Slots Evolved . | . . . . Power . | . . . . Propulsion . | . . . . Utility . | . . . . Weapon . | . . . . Parts Attached 20 | 7 11 1 1 Power 1 | 1 . . . Engine 1 | 1 . . . Core . | . . . . Reactor . | . . . . Propulsion 5 | 2 3 . . Treads . | . . . . Leg 5 | 2 3 . . Wheel . | . . . . Hover . | . . . . Flight . | . . . . Utility 5 | 2 2 . 1 Device 2 | 1 . . 1 Storage 3 | 1 2 . . Processor . | . . . . Hackware . | . . . . Protection . | . . . . Artifact . | . . . . Weapon 9 | 2 6 1 . Energy Gun 2 | 1 1 . . Energy Cannon 3 | . 2 1 . Ballistic Gun 3 | 1 2 . . Ballistic Cannon . | . . . . Launcher 1 | . 1 . . Special Weapon . | . . . . Impact Weapon . | . . . . Slashing Weapon . | . . . . Piercing Weapon . | . . . . Special Melee Weapon . | . . . . Unidentified Prototypes . | . . . . Parts Lost 6 | . 3 . 3 Power . | . . . . Propulsion 1 | . 1 . . Utility 2 | . . . 2 Weapon 3 | . 2 . 1 Highest Loss Streak 2 | . 2 . 2 To Critical Strikes . | . . . . Average Backups 11 | 1 8 15 14 Power 1 | . 1 2 2 Propulsion 3 | . 2 4 4 Utility 2 | . 2 2 1 Weapon 4 | . 2 7 7 Tool/Special . | . . . . Unused Backups 9 | . 1 . 8 Power 2 | . . . 2 Propulsion 5 | . 1 . 4 Utility 1 | . . . 1 Weapon 1 | . . . 1 Tool/Special . | . . . . Average Slot Usage (%) 99 | . 99 100 99 Engine 14 | . 14 14 14 Leg 27 | . 27 28 28 Device 13 | . 14 14 13 Storage 14 | . 14 14 14 Energy Gun 3 | . 6 . . Energy Cannon 12 | . . 27 28 Ballistic Gun 11 | . 20 . . Peak Build Rating 11 | 7 11 11 11 Average Rating 8 | 5 7 10 10 On Entrance 7 | . 7 11 11 Naked Turns . | . . . . Heaviest Build 34 | 15 34 34 34 Greatest Support 20 | 20 20 20 20 Greatest Overweight (x) 3 | 2 3 1 1 Average Overweight (x) . | . . 1 1 Largest Inventory Capacity 15 | 8 15 15 15 Average Capacity 14 | 7 13 15 15 Most Carried 15 | 3 15 15 15 Average Carried 11 | 1 8 15 14 Final Capacity 15 | 8 15 15 15 Final Carried 15 | 2 15 15 13 Class Distribution -------------------- 75% | Mutant 24% | Scavenger-Mutant Dominant Class ---------------- Mutant | -10/Materials Mutant | -10/Mines Mutant | -10/Subcaves Resources | -11 -10 -10 -10 ----------- Run | Yrd Mat Min Sub Matter Collected 718 | 285 339 94 . Remotely . | . . . . Salvage Created 1245 | 118 860 186 81 Parts 66 | 9 47 7 3 Haulers Intercepted 2 | . 2 . . Recyclers Shooed 1 | . 1 . . Parts Field Recycled . | . . . . Retrieved Matter . | . . . . Parts Self-Destructed 7 | . . . 7 Prevented . | . . . . Kills | -11 -10 -10 -10 ------- Run | Yrd Mat Min Sub Combat Hostiles Destroyed 21 | . 14 3 4 Guns 8 | . 8 . . Cannons 4 | . . . 4 AOE 9 | . 6 3 . Classes Destroyed 10 | 2 7 . 1 Worker 1 | . 1 . . Builder 1 | . 1 . . Tunneler 2 | 2 . . . Hauler 2 | . 2 . . Recycler 6 | 1 3 2 . Operator 2 | . 2 . . Watcher 3 | . 3 . . Swarmer 12 | . 6 3 3 Grunt 8 | . 8 . . Subdweller 1 | . . . 1 Best Kill Streak 5 | 3 5 3 3 Combat Bots Only 3 | . 3 3 3 Max Kills in Single Turn 2 | 1 2 1 1 Gunslinging 1 | . 1 . . Exploded 2 | . 2 1 . Melee . | . . . . Uniques/NPCs Destroyed . | . . . . Combat | -11 -10 -10 -10 -------- Run | Yrd Mat Min Sub Hostile Shots Fired 112 | . 64 10 38 Missed 33 | . 15 3 15 Hits 79 | . 49 7 23 Projectile 79 | . 49 7 23 Damage Taken 1045 | . 595 96 354 Core 257 | . 155 14 88 Absorbed by Shields . | . . . . Core Remaining (%) 100 | 100 . . . Volleys Fired 97 | 5 69 5 18 Largest 2 | 2 2 2 2 Hottest 136 | 70 136 136 136 Shots Fired 186 | 10 134 7 35 Gun 137 | 10 127 . . Cannon 42 | . 4 4 34 Launcher 7 | . 3 3 1 Special . | . . . . Kinetic 84 | 5 79 . . Thermal 89 | 5 46 4 34 Explosive 7 | . 3 3 1 Electromagnetic 6 | . 6 . . Robot Hit Streak 11 | 3 8 2 11 Robot Miss Streak 7 | 3 7 2 3 Penetration Max . | . . . . Secondary Targets 2 | . 2 . . Max Gunslinging Chain 1 | . 1 . . Shots Hit Robots 106 | 5 80 4 17 Core Hits 58 | 4 44 5 5 Critical Kills . | . . . . Critical Parts Destroyed . | . . . . Critical Strikes 3 | . 3 . . Burn 2 | . 2 . . Corrupt 1 | . 1 . . Melee Attacks . | . . . . Impact . | . . . . Slashing . | . . . . Piercing . | . . . . Sneak Attacks . | . . . . Combat Hostiles . | . . . . Follow-up Attacks . | . . . . Damage Inflicted 2156 | 65 1393 288 410 Guns 1018 | 65 953 . . Cannons 453 | . 63 60 330 Explosions 685 | . 377 228 80 Melee . | . . . . Ramming . | . . . . Kinetic 607 | 40 567 . . Thermal 889 | 25 474 60 330 Explosive 611 | . 303 228 80 Electromagnetic 49 | . 49 . . Impact . | . . . . Slashing . | . . . . Piercing . | . . . . Highest Corruption . | . . . . Average Corruption . | . . . . Corruption Purged . | . . . . Corruption Blocked . | . . . . Overload Shots . | . . . . Overflow Damage 32 | . 3 20 9 Projectiles 2 | . . . 2 Explosions 30 | . 3 20 7 Melee . | . . . . Knockbacks . | . . . . Impact . | . . . . Kinetic . | . . . . Secondary . | . . . . Self-Inflicted Damage 158 | . 88 39 31 Shots 6 | . 3 2 1 Rammed . | . . . . Targets Rammed . | . . . . Kicked . | . . . . Crushed . | . . . . Highest Temperature 282 | 18 282 75 135 Average Temperature 63 | 9 75 43 46 Received Heat Transfer 201 | . 183 . 18 Effects 1 | . 1 . . Energy Bleed 1 | . 1 . . Siege Activations . | . . . . Martial Activations . | . . . . Shielding Activations . | . . . . Robots Disrupted . | . . . . Combat Hostiles . | . . . . Robots Corrupted 1 | . 1 . . Combat Hostiles . | . . . . Parts Fried 1 | . 1 . . Impact Corruptions . | . . . . Robots Melted . | . . . . Combat Hostiles . | . . . . Parts Melted 4 | . 3 . 1 Heat Transferred 2135 | 74 1358 111 592 Parts Sabotaged . | . . . . Parts Stolen . | . . . . Parts Stripped . | . . . . Power Chain Reactions 1 | . 1 . . Alert | -11 -10 -10 -10 ------- Run | Yrd Mat Min Sub Maximum Alert Level . | . . . . Low Security (%) 100 | 100 100 100 . Level 1 . | . . . . Level 2 . | . . . . Level 3 . | . . . . Level 4 . | . . . . Level 5 . | . . . . High Security . | . . . . Max Security . | . . . . Peak Influence 172 | 10 172 98 . Initial 18 | . . 18 . Average 46 | 2 62 16 . Influence Increases 661 | 15 456 100 90 Destroy 0b10 Robot/C 400 | . 280 60 60 Destroy 0b10 Robot/NC 85 | 15 60 10 . Destroy Leader 70 | . 60 10 . Successful Hack 12 | . 12 . . Destroy Structure 34 | . 14 20 . Lose Combat Pursuer 60 | . 30 . 30 Influence Decreases 661 | 15 407 149 90 Entered New Map 31 | . . 31 . Time Decay 590 | 15 377 118 80 Lost Part 40 | . 30 . 10 Squads Dispatched 3 | . 3 . . Investigation 1 | . 1 . . Extermination . | . . . . Reinforcement 2 | . 2 . . Assault . | . . . . Garrison . | . . . . Intercept . | . . . . Searches Triggered . | . . . . Construction Impeded . | . . . . Haulers Reinforced . | . . . . Active Scanning Responses . | . . . . Cargo Convoy Interrupts . | . . . . Stealth | -11 -10 -10 -10 --------- Run | Yrd Mat Min Sub Distress Signals 1 | . 1 . . Communications Jammed . | . . . . Distress Signals . | . . . . Times Spotted 38 | . 28 3 7 Peak Tracking Total 6 | . 3 3 6 Tactical Retreats 2 | . 1 . 1 Traps | -11 -10 -10 -10 ------- Run | Yrd Mat Min Sub Traps Triggered 1 | . 1 . . Indirectly . | . . . . Trap Hack Attempts . | . . . . Triggered . | . . . . Disarmed . | . . . . Reprogrammed . | . . . . Reused . | . . . . Traps Extracted . | . . . . Installed . | . . . . Triggered . | . . . . Machines | -11 -10 -10 -10 ---------- Run | Yrd Mat Min Sub Machines Disabled . | . . . . Max in Single Turn . | . . . . Machines Repaired . | . . . . Machines Dismantled . | . . . . Machines Sabotaged . | . . . . Overloaded Fab Kills . | . . . . Hacking | -11 -10 -10 -10 --------- Run | Yrd Mat Min Sub Machines Accessed 8 | . 7 . 1 Terminals 5 | . 5 . . Fabricators . | . . . . Repair Stations . | . . . . Recycling Units 2 | . 2 . . Scanalyzers . | . . . . Garrison Access . | . . . . Total Hacks 32 | . 23 . 9 Successful 23 | . 14 . 9 Failed 9 | . 9 . . Catastrophic . | . . . . Database Lockouts . | . . . . Manual 12 | . 12 . . Terminals 16 | . 16 . . Fabricators . | . . . . Repair Stations . | . . . . Recycling Units 7 | . 7 . . Scanalyzers . | . . . . Garrison Access . | . . . . Terminal Hacks 14 | . 5 . 9 Record 8 | . . . 8 Prototype ID Bank 1 | . 1 . . Branch Access Points 1 | . 1 . . Locate Traps 1 | . 1 . . Recall Reinforcements 1 | . 1 . . Hauler Manifests 1 | . 1 . . Proto ID Catalog 1 | . . . 1 Fabricator Hacks . | . . . . Repair Station Hacks . | . . . . Recycling Unit Hacks 2 | . 2 . . Retrieve Components 2 | . 2 . . Scanalyzer . | . . . . Garrison Access Hacks . | . . . . Unauthorized Hacks 7 | . 7 . . Terminals 5 | . 5 . . Botnet 5 | . 5 . . Fabricators . | . . . . Repair Stations . | . . . . Recycling Units 2 | . 2 . . Reject 1 | . 1 . . Mask 1 | . 1 . . Scanalyzers . | . . . . Garrison Access . | . . . . Data Cores Recovered . | . . . . Used . | . . . . Hacking Detections 7 | . 7 . . Full Trace Events 1 | . 1 . . Feedback Events . | . . . . Feedback Blocked . | . . . . Robot Schematics Acquired . | . . . . Robots Built . | . . . . Authchips . | . . . . Time . | . . . . Total Robot Build Rating . | . . . . Part Schematics Acquired . | . . . . Parts Built . | . . . . Authchips . | . . . . Time . | . . . . Total Part Build Rating . | . . . . Parts Repaired . | . . . . Time . | . . . . Parts Recycled . | . . . . Recycled Matter . | . . . . Retrieved Matter . | . . . . Retrieved Components 10 | . 10 . . Parts Scanalyzed . | . . . . Part Schematics Acquired . | . . . . Parts Damaged . | . . . . Bothacking | -11 -10 -10 -10 ------------ Run | Yrd Mat Min Sub Used RIF Installer . | . . . . Robots Hacked . | . . . . Non-combat . | . . . . Combat . | . . . . Robot Hacks Applied . | . . . . Relay Couplers Released . | . . . . Fabnet Peak Effective % . | . . . . Robots Rewired . | . . . . Allies Hacked . | . . . . Hacks Repelled . | . . . . Allies | -11 -10 -10 -10 -------- Run | Yrd Mat Min Sub Total Allies . | . . . . Largest Group . | . . . . Highest-Rated Group . | . . . . Highest-Rated Ally . | . . . . Total Orders . | . . . . Ally Attacks . | . . . . Total Damage . | . . . . Kills . | . . . . Allies Corrupted . | . . . . Allies Melted . | . . . . Intel | -11 -10 -10 -10 ------- Run | Yrd Mat Min Sub Active Infowar (turns) 2397 | 8 1403 621 365 Structural 154 | . . . 154 Seismic 2243 | 8 1403 621 211 Robot Analysis Total . | . . . . Derelict Logs Recovered 4 | . . 3 1 Drone Launches . | . . . . Drone Recoveries . | . . . . Exploration | -11 -10 -10 -10 ------------- Run | Yrd Mat Min Sub Turns Passed 2481 | 82 1403 621 375 Spaces Moved 1133 | 46 605 318 164 Core 8 | 8 . . . Treads . | . . . . Legs 1125 | 38 605 318 164 Wheels . | . . . . Hover . | . . . . Flight . | . . . . Fastest Speed 50 | 50 120 190 190 Average Speed 179 | 118 175 190 190 Slowest Speed 330 | 150 330 190 190 Overloaded Moves . | . . . . Propulsion Burnouts . | . . . . Robots Hopped . | . . . . Potential Cave-ins . | . . . . Cave-ins Triggered . | . . . . Exploration Rate (%) 52 | 5 94 94 16 Regions Visited 3 Branch Regions 2 Pre-discovered Areas . | . . . . Known Exits Taken 1 | . 1 . . Unknown Exits Taken 2 | 1 . 1 . Scrap Searched 1 | . . 1 . Spaces Dug . | . . . . Terrain Destroyed 39 | . 12 24 3 Melee . | . . . . Projectile . | . . . . AOE 39 | . 12 24 3 Terrain Rammed . | . . . . Walls Destroyed . | . . . . Machines Disabled . | . . . . Actions | -11 -10 -10 -10 --------- Run | Yrd Mat Min Sub Total 1394 | 60 811 329 194 Wait 111 | . 102 . 9 Move 1130 | 45 604 317 164 Hop . | . . . . Pick Up 21 | 3 17 1 . Fast Attach 7 | 6 1 . . Attach 6 | 1 3 . 2 Detach . | . . . . Swap 15 | . 10 4 1 Drop 7 | . 5 2 . Fire 97 | 5 69 5 18 Melee . | . . . . Ram . | . . . . Kick . | . . . . Crush . | . . . . Escape Stasis . | . . . . Rewire . | . . . . Trap . | . . . . Miscellaneous . | . . . . Route ------- -11/Scrapyard -10/Materials (discovered 4 exits: [*Mat x3] / *Min) -10/Mines (discovered 3 exits: [*Mat x2] / *Sub) -10/Subcaves History --------- Turn | Location | Event 13 | -11/Scrapyard | Discovered new exit (range 16) 83 | -11/Scrapyard | Entered Materials 313 | -10/Materials | Build established: Mutant 654 | -10/Materials | Discovered new exit (range 4) 742 | -10/Materials | Core integrity fell below 50% 802 | -10/Materials | Identified exit to Mines 919 | -10/Materials | Discovered new exit (range 15) 1183 | -10/Materials | Build established: Scavenger-Mutant 1263 | -10/Materials | Discovered new exit (range 7) 1486 | -10/Materials | Entered Mines 1546 | -10/Mines | Discovered new exit (range 6) 1624 | -10/Mines | Discovered new exit (range 7) 1649 | -10/Mines | Found DCF Scrap (15 items) 1737 | -10/Mines | Build established: Mutant 1818 | -10/Mines | Learned location of 1 exit from Materials 1917 | -10/Mines | Learned Materials emergency access door positions 1957 | -10/Mines | Learned location of 1 exit from Materials 2084 | -10/Mines | Discovered new exit (range 9) 2107 | -10/Mines | Entered Subcaves 2125 | -10/Subcaves | Learned 4 Materials zone layouts 2138 | -10/Subcaves | Shifting Twisted Machinery released Sub. Beam Cannon 2148 | -10/Subcaves | Shifting Twisted Machinery released Piercing Trap 2153 | -10/Subcaves | Shifting Twisted Machinery released Riot Gun 2196 | -10/Subcaves | Shifting Twisted Machinery released Mak. Light Armor Plating 2406 | -10/Subcaves | Visited 4L-MR0's lab 2473 | -10/Subcaves | Core integrity fell below 20% 2482 | -10/Subcaves | Destroyed by CQ-R61(R) with Subdweller Machine Gun Last Messages --------------- There was a rumor. A rumor but no details. I can't build something based on a vague rumor about ending the world in a hellish blaze at the flip of a switch. Also why would anyone want that. >>Record "Uberlauncher" I hear [REDACTED] exploded during the installation process. I did warn them to fully install it before trying to fire, and something tells me that's where things went wrong. Still I'm glad they didn't listen, that way I'm not culpable for whatever they would've done with it. If we're lucky even some of the others got blasted, too. 02450_ CQ-R61(R): "SUBMAD!" 02475_ Structural Scanner destroyed. 02476_ Grenade Launcher destroyed. 02476_ Destroyed Grenade Launcher. 02482_ Sub. Optics melted. 02482_ 8X-B0X(R) destroyed. Map ----- +----------------------------------------------------+ | ??????????????????????????????????# ???????????? | | ??????????????????????????????????# ???????????? | | ?????????????????????????????????? ???????????? | | ??????????????????????????????????? ???????????? | | ??????????????????????????##??????? #?????????? | | ??????????????????????????" ?##### ##?????????? | | ?????????????????????????? ###### #?????????? | | ????????????????????????? ## # #?????????? | | ?????????????????????????? % ##?????????? | | ??????????????????????????? % ##?????????? | | ???????????????????????????? % ##?????????? | | ??????????????????????????????# #####??????? | | ???????????????????????????????? """ ######?????? | | ?????????????????????????????"#####"% ###?????? | | ?????????????????????????##########""% % ##?????? | | ????????????????????????####### ###"" ####?????? | | ???????????????????????#### % "" ###??????? | | ???????????????????????### "" ###??????? | | ???????????????????????## "" # ## "" ##??????? | | ???????????????????????## "" ######"""##??????? | | ???????????????????????### "" ######"""##??????? | | ???????????????????????### #####""###??????? | | ????????????????????????#### #### ""##??????? | | ???????????????????????##### ## #???????? | | ??????????############### ## ##???????? | | ?????????################@ R ## ##???????? | | ?????????###""" " "#### %& ##???????? | | ?????????## "" """ "### ###??????? | | ?????????## "" "" ## #### ###?????? | | ?????????##"" "" " ## #### ##?????? | | ?????????####" "## # #### ##?????? | | ?????????#####+##### ## #### ##?????? | | ??????????##" "### #< ### ##?????? | | ??????????##" "### ### #??????? | | ??????????## ""### ### ##??????? | | ??????????## X"### # < ##### ##???????? | | ??????????## ""#######< #### #####????????? | | ??????????##"#""####### #### #????????????? | | ??????????##=#""##???### ### #????????????? | | ??????????########???### # ######???????? | | ??????????########????### ## ##??????? | | ??????????????????????## ## #??????? | | ???????????????????????## #??????? | | ????????????????????????## ## #??????? | | ????????????????????????# ## #??????? | | ????????????????????????# ##??????? | | ????????????????????????## # ## ##???????? | | ????????????????????????#"" # ##### #????????? | | ???????????????????# ???#" # ##??# #????????? | | ???????????????? ## ##" # ##??# ##????????? | +----------------------------------------------------+ Best States ------------- Heat Dissipation 25 Energy Generation 10 Energy Capacity 250 Matter Stores 300 Matter Capacity 300 Sight Range 16 Terrain Scan Density 10 Evasion (%) 55 Item Schematics ----------------- None Robot Schematics ------------------ None Fabricated ------------ Nothing Repaired ---------- Nothing Alien Tech Used ----------------- None Achievements -------------- None Challenges ------------ None Game ------ Seed VariableGodClaws Manual? 0 Play Time 00:15:21 Cumulative 323.2 hours Start 2025.07.30 @ 11:31:36 End 2025.07.30 @ 11:45:12 Sessions 1 Manual Loads 0 Difficulty Rogue Special Mode None Game No. 146 Rogue 132 Adventurer 14 Explorer 0 Win Type - Total 18 Types 15/0/1/1/0/0/0/0/1/0 Lore% 63 Gallery% 72 Achievement% 67 Wizard Run 0 Options --------- Layout 1 ASCII 0 Keyboard 0 Movement Arrows Keybinds 0 Fullscreen 1 Font 24/Smallcaps Map View 50x35 Zoom Use 0% Tactical HUD 1 Map Filters NONE Filters NONE Steam 1 RUN: 2a83fee0-70ee-4efd-a086-7972da399d60